[Event "XXXII Belgrade Trophy 2018"]
[Site "Belgrade"]
[Date "2018.12.02"]
[Round "9"]
[White "Petrovic, Petar R"]
[Black "Dimic, Pavle"]
[Result "0-1"]
[ECO "B30"]
[WhiteElo "2014"]
[BlackElo "2348"]
[Annotator "RC"]
[PlyCount "82"]
[EventDate "2018.11.24"]
[EventType "swiss"]
[EventCountry "SRB"]
[SourceTitle "playchess.com"]
[Source "ChessBase"]
[SourceQuality "1"]
[TimeControl "40/5400+30:900+30"]

1. e4 {[%emt 0:02:47]} c5 {[%emt 0:00:00]} 2. Nf3 {[%emt 0:00:14]} Nc6 {[%emt 0:00:15]} 3. Bc4 {[%emt 0:00:17]} e6 {[%emt 0:02:12]} 4. O-O {[%emt 0:00:09]} Nge7 {[%emt 0:02:59]} 5. Re1 {[%emt 0:00:24]} a6 {[%emt 0:00:39]} 6. a3 {[%emt 0:00:03]} b5 {[%emt 0:04:45]} 7. Ba2 {[%emt 0:00:02]} g6 {[%emt 0:00:42]} 8. c3 {[%emt 0:00:40]} Bg7 {[%emt 0:05:42]} 9. d4 {[%emt 0:00:19]} cxd4 {[%emt 0:04:02]} 10. cxd4 {[%emt 0:00:45]} d5 {[%emt 0:03:23]} 11. exd5 {[%emt 0:04:15]} exd5 {[%emt 0:00:58]} 12. Nc3 {[%emt 0:01:05]} O-O {[%emt 0:02:04]} 13. h3 {[%emt 0:00:27]} Be6 {[%emt 0:01:04]} 14. Bg5 {[%emt 0:01:34]} Qd6 {[%emt 0:00:31]} 15. Qd2 {[%emt 0:00:47]} Nf5 {[%emt 0:03:42]} 16. Ne2 {[%emt 0:02:10]} Qd7 {[%emt 0:01:48]} 17. Rad1 {[%emt 0:05:09]} f6 {[%emt 0:05:01]} 18. Bf4 {[%emt 0:01:46]} Bf7 {[%emt 0:02:24]} 19. Ng3 {[%emt 0:04:12]} Nd6 {[%emt 0:00:54]} 20. Bh6 {[%emt 0:00:49]} Rfe8 {[%emt 0:01:13]} 21. Bxg7 {[%emt 0:00:15]} Kxg7 {[%emt 0:00:05]} 22. b3 {[%emt 0:02:04]} Ne4 {[%emt 0:03:03]} 23. Nxe4 {[%emt 0:04:05]} dxe4 {[%emt 0:00:53]} 24. Nh2 {[%emt 0:02:54]} f5 {[%emt 0:03:32]} 25. d5 {[%emt 0:00:24]} Ne5 {[%emt 0:01:14]} 26. Qd4 {[%emt 0:02:11]} Kg8 {[%emt 0:01:20]} 27. Bb1 {[%emt 0:02:23]} Qd6 {[%emt 0:00:57]} 28. b4 {[%emt 0:02:16]} Rad8 {[%emt 0:00:42]} 29. Ba2 {[%emt 0:01:44]} Nd3 {[%emt 0:04:52]} 30. Re3 {[%emt 0:02:37]} Nxf2 {[%emt 0:02:18]} 31. Kxf2 {[%emt 0:03:11]} Qxh2 {[%emt 0:00:11]} 32. Rg3 {[%emt 0:08:34]} f4 {[%emt 0:04:40]} 33. Rg4 {[%emt 0:00:03]} f3 {[%emt 0:01:07]} 34. Qf6 {[%emt 0:02:13]} fxg2 {[%emt 0:02:57]} 35. Rxg2 {[%emt 0:01:16]} e3+ {[%emt 0:00:44]} 36. Kf3 {[%emt 0:00:32]} Qxh3+ {[%emt 0:01:25]} 37. Rg3 {[%emt 0:00:15]} Qh5+ {[%emt 0:02:41]} 38. Rg4 {[%emt 0:00:13]} e2 {[%emt 0:00:38]} 39. Re1 {[%emt 0:00:19]} Bxd5+ {[%emt 0:00:27]} 40. Bxd5+ {[%emt 0:00:47]} Qxd5+ {[%emt 0:00:35]} 41. Kg3 {[%emt 0:15:54]} Qe5+ {[%emt 0:15:28]} 0-1